{"text_format":"1","workbook":"xlsx","n_sheets":24,"sheets":["Sanal","DD","DERSDENETİM","KKÇİZ","BGH","KUR.KOM.","PROJE","YEMEK","taşımalı","GÜVENLİK","T.İŞÇİ","TEMİZLİK","K.EKDERS","ÜP","BRD","ASG.GEÇ.BORD.","ANA","MAAŞ","ÜCRETLİ","EkDers","Puantaj","Kodlar","Ayar","Arsiv"],"not_rendered":{"charts":0,"images":1,"macros":1,"external_links":0,"defined_names":16,"comments":3,"pivot_tables":0},"unopened":[],"bounds":{"document_bytes":16777216,"sheet_cells":100000,"rows_first":2000,"rows_last":500,"rows_between":2000,"halvings":0,"cell_chars":16384,"cell_head_chars":4096},"cells_cut":0,"cells_raw":0,"read":"whole","date_system":"1900"}

{"sheet":"Sanal","index":0,"n_rows":5,"n_cols":2,"rows_kept":5,"cut":false,"hidden":false,"merged":[[0,0,0,1]]}
["DYS+ MEB E-POSTA+ WHATSAPP-TWİTTER TAKİPLERİ"]
["1-","Okul WEB Sayfanızı sürekli güncel tutunuz. "]
["2-","DYS ve meb e-postanızı 09:00, 13:30 ve 17:00 Saatlerinde kontrol ediniz."]
["3-","Whatsapta bir kişiye yazacağınız yazıyı grup yerine ismine tıklayarak yazınız."]
["4-","Okul Twitter Hesabınızı her akşam gözden geçiriniz. "]

{"sheet":"DD","index":1,"n_rows":6,"n_cols":2,"rows_kept":6,"cut":false,"hidden":false,"merged":[[0,0,0,1]]}
["ÖĞRENCİ DEVAMSIZLIKLARI"]
["1-","Öncelikle\" Öğrenci Rapor/İzin\" adında bir klasörünüz olmaldır. "]
["2-","Rapor veya izin alan öğrencilerinizi e-okula hemen işleyiniz ve klasöre ekleyiniz. Zamanınız yoksa bir kağıda yazınız müsait olduğunuz ilk zaman diliminde işleyiniz. "]
["3-","Ders defterlerini son derste toplayarak inceleyiniz. Eksik imza varsa tamamlatınız."]
["4-","e-okul-… Kurum İşlemleri-Devamsızlık-Günlük devamsızlık seçiniz."]
["5-","Girişlerinizi yapınız. Raporlardan devamsızlık Mektubu taramanızı yapınız. Veli bilgilendirmeleriniz yönetmeliğiniz (İlköğretim veya ortaöğretim) doğrultusunda yapmayı ihmal etmeyiniz."]

{"sheet":"DERSDENETİM","index":2,"n_rows":48,"n_cols":6,"rows_kept":48,"cut":false,"hidden":false,"merged":[[11,2,11,5],[0,0,0,5],[1,0,1,5],[2,0,2,5],[3,2,3,5],[4,2,4,5],[5,2,5,5],[6,2,6,5],[7,2,7,5],[8,2,8,5],[9,2,9,5],[10,0,10,5],[23,1,23,2],[12,2,12,5],[13,2,13,5],[14,0,14,5],[15,0,15,2],[16,1,16,2],[17,1,17,2],[18,1,18,2],[19,1,19,2],[20,1,20,2],[21,1,21,2],[22,1,22,2],[35,1,35,2],[24,1,24,2],[25,1,25,2],[26,1,26,2],[27,1,27,2],[28,1,28,2],[29,1,29,2],[30,1,30,2],[31,1,31,2],[32,1,32,2],[33,1,33,2],[34,1,34,2],[42,1,42,2],[43,0,43,5],[46,4,46,5],[47,4,47,5],[36,1,36,2],[37,1,37,2],[38,1,38,2],[39,1,39,2],[40,1,40,2],[41,1,41,2]]}
["Ders Denetim Formu  Açıklamalar Dikkate Alınarak Yılda En Az İki Defa Doldurulur. (Açıklamayı okuyun)"]
["T.C.\nKARABURUN KAYMAKAMLIĞI\n...................... ... Müdürlüğü\nÖğretmen Ders Denetleme Formu"]
["ÖĞRETMENİN KİMLİK VE GÖREV BİLGİLERİ"]
[1,"Adı Soyadı",":"]
[2,"T.C. Kimlik No",":"]
[3,"Meslek Kıdemi",":"]
[4,"Branşı",":"]
[5,"Varsa Yöneticilik Görevi",":"]
[6,"Haftalık Ders Saati Toplamı",":"]
[7,"Mezuniyet Sonrası Eğitimi",":"]
["DENETİM BİLGİLERİ"]
[1,"Denetim Tarihi- Saati",":"]
[2,"Denetlenen Ders- Sınıf-Şube",":"]
[3,"Denetlenen Dersin Konusu",":"]
["DEĞERLENDİRME KONULARI: "]
["Milli Eğitim Temel Kanunundaki Amaç ve İlkeler ile Okulun ve Dersin \nAmaçları Doğrultusunda",null,null,"GELİŞTİRİLMELİ","İYİ","ÇOK İYİ"]
[1,"Alan, Program ve İçerik Bilgisini Eğitim-Öğretime Yansıtması"]
[2,"Ünitelendirilmiş Yıllık Planlar ile Günlük/Ders Planları Hazırlama ve Uygulama Başarısı"]
[3,"Zümre Planları İstenilen Şekilde Hazırlanması, Uygulaması"]
[4,"Zümre Arkadaşları ile İşbirliği "]
[5,"Sınıf Hâkimiyeti, Öğrencileri Derse Güdülemesi "]
[6,"Öğretim Metodu Seçme ve Uygulama Başarısı"]
[7,"Dersi İşlemede Zamanı Değerlendirme ve Ders Defteri Kullanma Başarısı"]
[8,"Ders Araç ve Gereçlerini Etkin Olarak Kullanma Başarısı"]
[9,"Teknolojik Araçları Kullanma Başarısı (Bilgisayar,  Projeksiyon, Akıllı Tahta vb.)"]
[10,"Ünite ve Tema Köşelerinin, İşlenen Konulara Uygun Güncellenmesi"]
[11,"Öğrenciye Verilen Ödevlerde Yönlendirme Yapması"]
[12,"Sınıf İçi Etkinliklerde Her Öğrenciye Uygun Fırsatlar Vermesi"]
[13,"Öğrencilerin Derse İlgisi ve Katılımı, Soru Sorma ve Cevap Vermedeki Cesaret ve Başarıları"]
[14,"Öğrenci Başarısını Artırmak İçin Aldığı Önlemler"]
[15,"Sınıf Kitaplığı Oluşturma/Düzenleme/Güncelleme"]
[16,"Okulun Genel İşleyişine Katkıda Bulunması"]
[17,"Serbest Zaman Etkinlikleri Planlama/Uygulamama/Dosyalama"]
[18,"Proje ve Performans Ödevi Verilmesi ve Değerlendirilmesi"]
[19,"Derslerin İşlenişinde Dikkate Alınacak Hususlara Uyma  "]
[20,"E-Okul Modülünü Kullanma/Öğfrenci Bilgilerini Güncelleme"]
[21,"Öğrenci Velileri ile Yapılacak İşbirliği Esaslarına Uyma/ Veli Toplantıları Düzenleme"]
[22,"Genel Durum ve Davranışı, Görev Arkadaşları ve Amirlerine Karşı Tutum ve Davranışı"]
[23,"Öğrenci Ders Kitaplarını, Çalışma Kitaplarını Amacına Uygun Kullandırması"]
[24,"Kaynaştırma Öğrenciler İçin BEP Planı Hazırlama ve Uygulama"]
[25,"Sınav Tarihlerini Önceden Duyurması,"]
[26,"Cevap Anahtarı Hazırlanıp, Anahtara Uygun Puanlama Yapılması."]
[27,"Dynet sistemini uygulatma ve güncelleme (İngilizce ve Sınıf Öğretmenleri)"]
["DÜŞÜNCELER VE AÇIKLAMALAR"]
[null,"Açıklamalar: Yukarıda değerlendirme bölümünde belirtilen 'Geliştirilmeli' bölümündeki maddeler konusunda gerekli"]
[null,"çalışmaların yapılarak, en kısa zamanda tamamlanması ve tamamlandığında okul müdürüne bilgi verilmesi."]
[null,null,null,null,".........................."]
[null,null,null,null,"  Okulu Müdürü"]

{"sheet":"KKÇİZ","index":3,"n_rows":12,"n_cols":4,"rows_kept":12,"cut":false,"hidden":false,"merged":[[0,0,0,3],[1,0,1,3]]}
["……………………………………………….ANADOLU LİSESİ MÜDÜRLÜĞÜ "]
["BELİRLİ GÜN VE HAFTALAR SORUMLU ÖĞRETMEN ÇİZELGESİDİR"]
["S.NO","KURUL KOMİSYON VEYA EKİP ADI","ÇALIŞMA ALANI","ÇALIŞMA DURUMU"]
[1]
[2]
[3]
[4]
[5]
[6]
[7]
[8]
[9]

{"sheet":"BGH","index":4,"n_rows":55,"n_cols":2,"rows_kept":55,"cut":false,"hidden":false,"merged":[[54,0,54,1],[0,0,0,1],[1,0,1,1],[50,0,50,1],[51,0,51,1],[52,0,52,1],[53,0,53,1]]}
["……………………………………………….ANADOLU LİSESİ MÜDÜRLÜĞÜ "]
["BELİRLİ GÜN VE HAFTALAR SORUMLU ÖĞRETMEN ÇİZELGESİDİR"]
["GÜN VEYA HAFTA ADI","GÖREVLİ ÖĞRETMEN"]
["1.    İlköğretim Haftası (Eylül ayının 3. haftası) "]
["2.    Gaziler Günü (19 Eylül) "]
["1.       Hayvanları Koruma Günü (4 Ekim)"]
["2.       Ahilik Kültürü Haftası (8-12 Ekim)"]
["3.       Birleşmiş Milletler Günü (24 Ekim)"]
["4.       Kızılay Haftası   (29 Ekim-4 Kasım)"]
["5.       29 Ekim Cumhuriyet Bayramı (28 Ekim öğleden sonar başlar 29 Ekim akşamı sona erer) "]
["1.       Organ Bağışı ve Nakli Haftası (3-9 Kasım)"]
["2.       Lösemili Çocuklar Haftası (2-8 Kasım)"]
["3.       Atatürk Haftası (10-16 Kasım)"]
["4.       Afet Eğitimi Hazırlık Günü (12 Kasım)"]
["5.       Dünya Felsefe Günü   (20 Kasım)"]
["6.       Dünya Çocuk Hakları Günü (20 Kasım)"]
["7.       Öğretmenler Günü (24 Kasım)"]
["1.       Dünya AIDS Günü  (1 Aralık)"]
["2.       Mevlana Haftası (2-9 Aralık) (Ek : 17.04.2010/27555 RG)"]
["3.       İnsan Hakları ve Demokrasi Haftası (10 Aralık gününü içine alan hafta)"]
["4.       Tutum, Yatırım ve Türk Malları Haftası (12-18 Aralık)"]
["Enerji Tasarrufu Haftası (Ocak ayının 2. haftası)"]
["1.       Sivil Savunma Günü    (28 Şubat)"]
["2.       Vergi Haftası (Şubat ayının son haftası)"]
["1.       Yeşilay Haftası (1Mart gününü içine alan hafta)"]
["2.       Girişimcilik Haftası (Mart ayının ilk haftası)"]
["3.       Dünya Kadınlar Günü (8 Mart)"]
["4.       Bilim ve Teknoloji Haftası (8-14 Mart)"]
["5.       İstiklâl Marşı’nın Kabulü ve Mehmet Akif Ersoy’u Anma Günü (12 Mart)"]
["6.       Tüketiciyi Koruma Haftası(15-21 Mart)"]
["7.       Şehitler Günü (18 Mart)"]
["8.       Yaşlılar Haftası (18-24 Mart)"]
["9.       Türk Dünyası ve Toplulukları Haftası (21 Mart Nevruz gününü içine alan hafta)"]
["10.    Orman Haftası      (21-26 Mart)"]
["11.    Dünya Tiyatrolar Günü (27 Mart)"]
["12.    Kütüphaneler Haftası   (Mart ayının son pazartesi gününü içine alan hafta)"]
["1.       Turizm Haftası     (15-22 Nisan)"]
["2.       Dünya Kitap Günü ve Kütüphaneler Haftası (23 Nisan gününü içine alan hafta)"]
["3.       23 Nisan Ulusal Egemenlik ve Çocuk Bayramı"]
["1.       Yunus Emre Haftası (Mayıs ayının ilk haftası)” ) (Ek : 17.04.2010/27555 RG)"]
["2.       Bilişim Haftası (Mayıs ayının ilk haftası)"]
["3.       Trafik ve İlkyardım Haftası (Mayıs ayının ilk haftası)"]
["4.       Vakıflar Haftası     (Mayıs ayının 2. haftası)"]
["5.       Anneler Günü (Mayıs ayının 2 inci Pazarı)"]
["6.       Engelliler Haftası (10-16 Mayıs)"]
["7.       Müzeler Haftası    (18-24 Mayıs)"]
["8.       Etik Günü  (25 Mayıs)"]
["9.       19 Mayıs Atatürkü Anma Gençlik ve Spor Bayramı"]
["1.       Çevre Koruma Haftası (Haziran ayının 2. haftası)"]
["2.       Babalar Günü (Haziran ayının 3 üncü pazarı)"]
["Açıklama : Görevlendirmeler alfabetik isim sırasına göre yapılmıştır. Her öğretmenimiz, etkinliğini planlayıp idareci ve öğretmenler işbirliği ile yapılmasını sağlayarak ve etkinlik görüntü ve raporlarını idareye sunacaktır."]
[{"$f":"TODAY()","v":"2019-03-15"}]
[]
["M.MAHSUM GÜLTEKİN "]
["Okul Müdürü"]

{"sheet":"KUR.KOM.","index":5,"n_rows":7,"n_cols":2,"rows_kept":7,"cut":false,"hidden":false,"merged":[[0,0,0,1]]}
["KURUL VE KOMİSYONLAR"]
["1-","Öncelikle\" KURL VE KOMİSYONLAR\" adında bir gerçek bir sanal klasörünüz olmaldır. "]
["2-","Sizde hangi kurul, komisyon ya da ekip varsa aşağıdaki gibi bir çizelgede belirtiniz."]
["3-","Tüm çalışmalarınızı düzenli takip ediniz. "]
["4-","Gerekli formları arşivleyiniz."]
[]
[null,"ÖRNEK ÇİZELGE İÇİN TIKLAYINIZ"]

{"sheet":"PROJE","index":6,"n_rows":6,"n_cols":2,"rows_kept":6,"cut":false,"hidden":false,"merged":[[0,0,0,1]]}
["KADROLU EKDERS"]
["1-","Öncelikle\" PROJELER\" adında bir gerçek bir sanal klasörünüz olmaldır. "]
["2-","Tüm çalışmalarınızı düzenli arşivleyiniz."]
["3-","Tüm projelerinzin yasal dayanağı olmaldır. Kendiize aitse mutlaka OLUR alınız."]
["4-","Her proje için gçrevlendirmeleri yapınız ve düzenli aralıklarla takip ediniz."]
["5-","Raporlamalarınız aylık olarak yapınız ve dosyalayınız. İstenmemişse göndermeyiniz."]

{"sheet":"YEMEK","index":7,"n_rows":28,"n_cols":35,"rows_kept":28,"cut":false,"hidden":false,"merged":[[22,0,22,11],[22,13,22,21],[22,33,22,36],[0,0,0,36],[2,0,5,36],[6,0,9,36],[10,31,10,33],[10,34,10,36],[11,31,11,33],[11,34,11,36],[13,3,13,10],[17,1,17,31],[21,0,21,11],[21,13,21,30],[21,33,21,36],[23,0,23,11],[23,13,23,21],[23,33,23,36],[24,2,24,11],[24,12,24,21],[24,33,24,36],[28,33,28,36],[29,33,29,36],[30,33,30,36],[25,2,25,11],[25,12,25,21],[26,2,26,11],[26,12,26,21],[26,33,26,36],[27,2,27,11],[27,12,27,21],[27,33,27,36]]}
["2018-2019 EĞİTİM-ÖĞRETİM YILI TAŞIMALI ORTAÖĞRETİM TAŞIMA UYGULAMASI AYLIK BİLDİRİM CETVELİ"]
[]
["          TAŞIMALI EĞİTİM UYGULANAN MERKEZ OKULUN ADI: KARABURUN ANADOLU İMAM HATİP LİSESİ"]
[]
[]
[]
["  MERKEZ  OKULA  TAŞINAN  YERLEŞİM BİRİMİ:  Hasseki-Yeni Liman-Karaburun-Kösedere-Eğlenhoca- Eski Mordoğan Köyü-Okul"]
[]
[]
[]
[1,2,3,4,5,6,7,8,9,10,11,12,13,14,15,16,17,18,19,20,21,22,23,24,25,26,27,28,29,30,31,"TOPLAM GÜN SAYISI",null,null,"AİT OLDUĞU AY"]
[" -","x","x","x"," -"," -","X","X","X","X","X"," -"," -","X","X","X","X","-","-","-","-","-","-","-","-","-","-","-","-","-","-","Oniki ( 12) İş Günü",null,null,"2019-01-01"]
[]
[null,null,null,"AÇIKLAMALAR",null,null,null,null,null,null,null,":","(X )",null,"YEMEĞİN VERİLDİĞİ GÜNLER"]
[null,null,null,null,null,null,null,null,null,null,null,null,"(---)",null,"YEMEĞİN VERİLMEDİĞİ GÜNLER"]
[]
[]
[]
[]
[]
[]
["YÜKLENİCİNİN ADI -SOYADI",null,null,null,null,null,null,null,null,null,null,null,":","Mordoğan Pide -Yaşar Gürgey"]
[]
["YÜKLENİCİNİN İMZASI",null,null,null,null,null,null,null,null,null,null,null,":",null,null,null,null,null,null,null,null,null,null,null,null,null,null,null,null,null,null,null,null,"ONAYLAYAN"]
[null,null,null,null,null,null,null,null,null,null,null,null,null,null,null,null,null,null,null,null,null,null,null,null,null,null,null,null,null,null,null,null,null,{"$f":"TODAY()","v":"2019-03-15"}]
[null,null,"DÜZENLEYEN"]
[null,null,"Mehmet MİNTAŞ",null,null,null,null,null,null,null,null,null,null,null,null,null,null,null,null,null,null,null,null,null,null,null,null,null,null,null,null,null,null,"M.Mahsum GÜLTEKİN "]
[null,null,"Müdür Yardımcısı",null,null,null,null,null,null,null,null,null,null,null,null,null,null,null,null,null,null,null,null,null,null,null,null,null,null,null,null,null,null,"Okul Müdürü"]

{"sheet":"taşımalı","index":8,"n_rows":26,"n_cols":35,"rows_kept":26,"cut":false,"hidden":false,"merged":[[22,0,22,11],[22,13,22,27],[22,33,22,36],[0,0,0,36],[2,0,5,36],[6,0,9,36],[10,31,10,33],[10,34,10,36],[11,31,11,33],[11,34,11,36],[13,3,13,10],[17,1,17,31],[21,0,21,11],[21,13,21,29],[21,33,21,36],[27,2,27,11],[27,12,27,21],[27,33,27,36],[23,2,23,11],[23,13,23,21],[23,33,23,36],[24,2,24,11],[24,12,24,21],[24,33,24,36],[25,2,25,11],[25,12,25,21],[25,33,25,36],[26,12,26,21],[26,33,26,36]]}
["2018-2019 EĞİTİM-ÖĞRETİM YILI TAŞIMALI ORTAÖĞRETİM UYGULAMASI AYLIK BİLDİRİM CETVELİ"]
[]
["          TAŞIMALI EĞİTİM UYGULANAN MERKEZ OKULUN ADI: KARABURUN ANADOLU İMAM HATİP LİSESİ"]
[]
[]
[]
["  MERKEZ  OKULA  TAŞINAN  GÜZERGAHLAR: Hasseki-Yeni Liman-Karaburun-Kösedere-Eğlenhoca- Eski Mordoğan Köyü-Okul"]
[]
[]
[]
[1,2,3,4,5,6,7,8,9,10,11,12,13,14,15,16,17,18,19,20,21,22,23,24,25,26,27,28,29,30,31,"TOPLAM GÜN SAYISI",null,null,"AİT OLDUĞU AY"]
[" -","x","x","x"," -"," -","X","X","X","X","X"," -"," -","X","X","X","X","X","-","-","-","-","-","-","-","-","-","-","-","-","-","Onüç ( 13) İş Günü",null,null,"2019-01-01"]
[]
[null,null,null,"AÇIKLAMALAR",null,null,null,null,null,null,null,":","(X )",null,"TAŞIMANIN YAPILDIĞI GÜNLER"]
[null,null,null,null,null,null,null,null,null,null,null,null,"(---)",null,"TAŞIMANIN YAPILMADIĞI GÜNLER"]
[]
[]
[]
[]
[]
[]
["YÜKLENİCİNİN ADI -SOYADI",null,null,null,null,null,null,null,null,null,null,null,":","S.S. ÖZKARABURUNLULAR MOT. TAŞ. KOOP."]
[null,null,null,null,null,null,null,null,null,null,null,null,null,null,null,null,null,null,null,null,null,null,null,null,null,null,null,null,null,null,null,null,null,"ONAYLAYAN"]
[null,null,"DÜZENLEYEN"]
[null,null,"Mehmet MİNTAŞ",null,null,null,null,null,null,null,null,null,null,null,null,null,null,null,null,null,null,null,null,null,null,null,null,null,null,null,null,null,null,"M.Mahsum GÜLTEKİN "]
[null,null,"Müdür Yardımcısı",null,null,null,null,null,null,null,null,null,null,null,null,null,null,null,null,null,null,null,null,null,null,null,null,null,null,null,null,null,null,"Okul Müdürü"]

{"sheet":"GÜVENLİK","index":9,"n_rows":48,"n_cols":12,"rows_kept":48,"cut":false,"hidden":false,"merged":[[9,0,9,1],[9,2,9,6],[9,8,9,9],[9,10,9,13],[10,0,10,1],[10,2,10,6],[10,8,10,9],[10,10,10,13],[0,4,0,10],[1,4,1,10],[3,0,3,13],[4,0,4,13],[5,0,7,13],[8,0,8,1],[8,2,8,6],[8,8,8,9],[8,10,8,13],[15,1,15,6],[15,9,15,13],[16,1,16,3],[16,4,16,6],[16,8,16,10],[16,11,16,13],[11,0,11,6],[11,8,11,13],[12,0,14,0],[12,1,14,6],[12,8,14,8],[12,9,14,13],[25,11,25,13],[26,8,26,10],[26,11,26,13],[27,8,27,10],[27,11,27,13],[21,11,21,13],[22,8,22,10],[22,11,22,13],[23,8,23,10],[23,11,23,13],[24,8,24,10],[24,11,24,13],[21,8,21,10],[31,1,31,3],[31,4,31,6],[31,8,31,10],[31,11,31,13],[32,1,32,3],[32,4,32,6],[32,8,32,10],[32,11,32,13],[28,8,28,10],[28,11,28,13],[29,8,29,10],[29,11,29,13],[30,8,30,10],[30,11,30,13],[17,1,30,6],[17,8,17,10],[17,11,17,13],[18,8,18,10],[18,11,18,13],[19,8,19,10],[19,11,19,13],[20,8,20,10],[20,11,20,13],[25,8,25,10],[35,1,35,3],[35,4,35,6],[35,8,35,10],[35,11,35,13],[36,1,36,3],[36,4,36,6],[36,8,36,10],[36,11,36,13],[33,1,33,3],[33,4,33,6],[33,8,33,10],[33,11,33,13],[34,1,34,3],[34,4,34,6],[34,8,34,10],[34,11,34,13],[39,1,39,3],[39,4,39,6],[39,8,39,10],[39,11,39,13],[40,1,40,3],[40,4,40,6],[40,8,40,10],[40,11,40,13],[37,1,37,3],[37,4,37,6],[37,8,37,10],[37,11,37,13],[38,1,38,3],[38,4,38,6],[38,8,38,10],[38,11,38,13],[43,1,43,3],[43,4,43,6],[43,8,43,10],[43,11,43,13],[44,1,44,3],[44,4,44,6],[44,8,44,10],[44,11,44,13],[41,1,41,3],[41,4,41,6],[41,8,41,10],[41,11,41,13],[42,1,42,3],[42,4,42,6],[42,8,42,10],[42,11,42,13],[47,1,47,3],[47,4,47,6],[47,8,47,10],[47,11,47,13],[45,1,45,3],[45,4,45,6],[45,8,45,10],[45,11,45,13],[46,1,46,3],[46,4,46,6],[46,8,46,10],[46,11,46,13]]}
[null,null,null,null,"TÜRKİYE İŞ KURUMU GENEL MÜDÜRLÜĞÜ"]
[null,null,null,null,"İZMİR  ÇALIŞMA VE İŞ KURUMU İL MÜDÜRLÜĞÜ"]
[]
["EK-3:Toplum Yararına Program Katılımcı Devam Çizelgesi"]
["2 Kişilik"]
["   Bu çizelge İŞKUR’ a gönderilmeyecektir. Yüklenici, her katılımcıya devam ettikleri her gün için bu Çizelgeyi imzalatmak, muhafaza etmek ve ihtiyaç halinde yetkili kişi ve makamlara ibraz etmekle yükümlüdür."]
[]
[]
["Ait Olduğu Yıl",null,2018,null,null,null,null,null,"Ait Olduğu Ay",null,"EKİM"]
["TYP No",null,255595,null,null,null,null,null,"TYP Konusu",null,"ÖZEL GÜVENLİK"]
["TYP Başlama Tarihi",null,"2018-10-15",null,null,null,null,null,"TYP Bitiş Tarihi"]
["YUKLENİCİ ADI : Karaburun Anadolu İmam Hatip Lisesi",null,null,null,null,null,null,null,"Yüklenici Yetkilisi Ad, Soyad : M.Mahsum GÜLTEKİN\n                                                    Okul Müdürü"]
["Ad Soyad:","Mustafa TUNÇ",null,null,null,null,null,null,"Ad Soyad:"]
[]
[]
["TC Kimlik No:",42742503838,null,null,null,null,null,null,"TC Kimlik No:"]
["Gün","Sabah",null,null,"Akşam",null,null,null,"Sabah",null,null,"Akşam"]
[1,"Göreve Başlama 15/10/2018"]
[2]
[3]
[4]
[5]
[6]
[7]
[8]
[9]
[10]
[11]
[12]
[13]
[14]
[15]
[16]
[17]
[18]
[19]
[20,"Tatil",null,null,"Tatil"]
[21,"Tatil",null,null,"Tatil"]
[22]
[23]
[24]
[25]
[26]
[27,"Tatil",null,null,"Tatil"]
[28,"Tatil",null,null,"Tatil"]
[29]
[30]
[31]

{"sheet":"T.İŞÇİ","index":10,"n_rows":18,"n_cols":39,"rows_kept":18,"cut":false,"hidden":false,"merged":[[0,0,0,3],[1,0,1,3],[2,0,2,3],[2,4,2,38],[3,0,3,3],[3,4,3,38],[4,0,6,0],[4,1,6,1],[4,2,6,2],[4,3,6,3],[4,4,4,19],[5,9,6,9],[5,10,6,10],[5,11,6,11],[5,12,6,12],[5,4,6,4],[5,5,6,5],[5,6,6,6],[5,7,6,7],[5,8,6,8],[15,6,15,8],[15,11,15,14],[15,34,15,38],[5,25,6,25],[5,26,6,26],[5,27,6,27],[5,28,6,28],[5,29,6,29],[5,30,6,30],[5,19,6,19],[5,20,6,20],[5,21,6,21],[5,22,6,22],[5,23,6,23],[5,24,6,24],[5,13,6,13],[5,31,6,31],[5,32,6,32],[5,33,6,33],[12,6,13,17],[12,34,13,38],[5,14,6,14],[5,15,6,15],[5,16,6,16],[5,17,6,17],[5,18,6,18],[4,34,6,34],[4,35,6,35],[4,36,6,36],[4,37,6,37],[4,38,6,38],[4,20,4,33],[16,5,16,9],[16,10,16,15],[16,34,16,38],[17,5,17,9],[17,10,17,15],[17,34,17,38]]}
["T.C."]
["İZMİR VALİLİĞİ",null,null,null,null,null,null,null,null,null,null,null,null,null,null,null,null,null,null,null,null,null,null,null,null,null,null,null,null,null,null,null,null,null,"Sayfa : 1/ 1"]
["Karaburun Anadolu İmam Hatip Lisesi Müdürlüğü",null,null,null,"15-31 Aralık 2018 Karaburun Anadolu İmam Hatip Lisesi Müdürlüğü"]
[null,null,null,null,"ÇALIŞAN  İŞÇİLERE  AİT  PUANTAJ  CETVELİDİR"]
["SIRA \nNO","ADI / SOYADI","POZİSYON","YEVMİYE TL","Aralık",null,null,null,null,null,null,null,null,null,null,null,null,null,null,null,null,null,null,null,null,null,null,null,null,null,null,null,null,null,"ÇALIŞILAN GÜN","ÇALIŞILMAYAN \nGÜN","FİİLİ GÜN","ÜCRETLİ  İZİN","RAPOR"]
[null,null,null,null,"2018-12-15",{"$f":"E6+1","v":"2018-12-16"},{"$f":"F6+1","v":"2018-12-17"},"2018-12-18","2018-12-19","2018-12-20","2018-12-21","2018-12-22","2018-12-23","2018-12-24","2018-12-25","2018-12-26","2018-12-27",{"$f":"Q6+1","v":"2018-12-28"},{"$f":"R6+1","v":"2018-12-29"},"2018-12-30",{"$f":"T6+1","v":"2018-12-31"}]
[]
[1,"Halise ELMAS","GEÇİCİ İŞÇİ",0,null,null,"X","X","X","X","X",null,null,"X","X","X","X","X",null,null,"x",null,null,null,null,null,null,null,null,null,null,null,null,null,11,0,11,0,0]
[2]
[3]
[]
[]
["(X)","Çalışılan Günler",null,null,null,null,null,null,null,null,null,null,null,null,null,null,null,null,null,null,null,null,null,null,null,null,null,null,null,null,null,null,null,null,"Doğruluğu Tasdik Olunur.\nÜnite Amiri"]
["(O)","Çalışılmayan Günler"]
["(R)","Raporlu Günler"]
["(İZ)","İzinli Günler",null,null,null,null,"Hazırlayan",null,null,null,null,null,null,null,null,null,null,null,null,null,null,null,null,null,null,null,null,null,null,null,null,null,null,null,"Onaylayan"]
["(S.İ.)","Sendika İzni",null,null,null,"Mehmet MİNTAŞ",null,null,null,null,null,null,null,null,null,null,null,null,null,null,null,null,null,null,null,null,null,null,null,null,null,null,null,null,"M.Mahsum GÜLTEKİN"]
[null,null,null,null,null,"Müdür Yardımcısı",null,null,null,null,null,null,null,null,null,null,null,null,null,null,null,null,null,null,null,null,null,null,null,null,null,null,null,null,"Okul Müdürü"]

{"sheet":"TEMİZLİK","index":11,"n_rows":48,"n_cols":12,"rows_kept":48,"cut":false,"hidden":false,"merged":[[0,4,0,10],[1,4,1,10],[3,0,3,13],[4,0,4,13],[5,0,7,13],[8,0,8,1],[8,2,8,6],[8,8,8,9],[8,10,8,13],[11,0,11,6],[11,8,11,13],[12,0,14,0],[12,1,14,6],[12,8,14,8],[12,9,14,13],[9,0,9,1],[9,2,9,6],[9,8,9,9],[9,10,9,13],[10,0,10,1],[10,2,10,6],[10,8,10,9],[10,10,10,13],[17,1,23,6],[17,8,23,13],[24,1,24,3],[24,4,24,6],[24,8,24,10],[24,11,24,13],[15,1,15,6],[15,9,15,13],[16,1,16,3],[16,4,16,6],[16,8,16,10],[16,11,16,13],[27,1,27,3],[27,4,27,6],[27,8,27,10],[27,11,27,13],[28,1,28,3],[28,4,28,6],[28,8,28,10],[28,11,28,13],[25,1,25,3],[25,4,25,6],[25,8,25,10],[25,11,25,13],[26,1,26,3],[26,4,26,6],[26,8,26,10],[26,11,26,13],[31,1,31,3],[31,4,31,6],[31,8,31,10],[31,11,31,13],[32,1,32,3],[32,4,32,6],[32,8,32,10],[32,11,32,13],[29,1,29,3],[29,4,29,6],[29,8,29,10],[29,11,29,13],[30,1,30,3],[30,4,30,6],[30,8,30,10],[30,11,30,13],[35,1,35,3],[35,4,35,6],[35,8,35,10],[35,11,35,13],[36,1,36,3],[36,4,36,6],[36,8,36,10],[36,11,36,13],[33,1,33,3],[33,4,33,6],[33,8,33,10],[33,11,33,13],[34,1,34,3],[34,4,34,6],[34,8,34,10],[34,11,34,13],[39,1,39,3],[39,4,39,6],[39,8,39,10],[39,11,39,13],[40,1,40,3],[40,4,40,6],[40,8,40,10],[40,11,40,13],[37,1,37,3],[37,4,37,6],[37,8,37,10],[37,11,37,13],[38,1,38,3],[38,4,38,6],[38,8,38,10],[38,11,38,13],[43,1,43,3],[43,4,43,6],[43,8,43,10],[43,11,43,13],[44,1,44,3],[44,4,44,6],[44,8,44,10],[44,11,44,13],[41,1,41,3],[41,4,41,6],[41,8,41,10],[41,11,41,13],[42,1,42,3],[42,4,42,6],[42,8,42,10],[42,11,42,13],[47,1,47,3],[47,4,47,6],[47,8,47,10],[47,11,47,13],[45,1,45,3],[45,4,45,6],[45,8,45,10],[45,11,45,13],[46,1,46,3],[46,4,46,6],[46,8,46,10],[46,11,46,13]]}
[null,null,null,null,"TÜRKİYE İŞ KURUMU GENEL MÜDÜRLÜĞÜ"]
[null,null,null,null,"İZMİR  ÇALIŞMA VE İŞ KURUMU İL MÜDÜRLÜĞÜ"]
[]
["EK-3:Toplum Yararına Program Katılımcı Devam Çizelgesi"]
["2 Kişilik"]
["   Bu çizelge İŞKUR’ a gönderilmeyecektir. Yüklenici, her katılımcıya devam ettikleri her gün için bu Çizelgeyi imzalatmak, muhafaza etmek ve ihtiyaç halinde yetkili kişi ve makamlara ibraz etmekle yükümlüdür."]
[]
[]
["Ait Olduğu Yıl",null,2018,null,null,null,null,null,"Ait Olduğu Ay",null,"EKİM"]
["TYP No",null,255595,null,null,null,null,null,"TYP Konusu",null,"TEMİZLİK"]
["TYP Başlama Tarihi",null,"2018-10-08",null,null,null,null,null,"TYP Bitiş Tarihi"]
["YUKLENİCİ ADI : Karaburun Anadolu İmam Hatip Lisesi",null,null,null,null,null,null,null,"Yüklenici Yetkilisi Ad, Soyad : M.Mahsum GÜLTEKİN\n                                                    Okul Müdürü"]
["Ad Soyad:","Güllü EROĞUL",null,null,null,null,null,null,"Ad Soyad:","Tuğba BASKIN"]
[]
[]
["TC Kimlik No:","………….",null,null,null,null,null,null,"TC Kimlik No:","……………………"]
["Gün","Sabah",null,null,"Akşam",null,null,null,"Sabah",null,null,"Akşam"]
[1,"Göreve Başlama 08/10/2018",null,null,null,null,null,null,"Göreve Başlama 08/10/2018"]
[2]
[3]
[4]
[5]
[6]
[7]
[8]
[9]
[10]
[11]
[12]
[13,"Tatil",null,null,"Tatil",null,null,null,"Tatil",null,null,"Tatil"]
[14,"Tatil",null,null,"Tatil",null,null,null,"Tatil",null,null,"Tatil"]
[15]
[16]
[17]
[18]
[19]
[20,"Tatil",null,null,"Tatil",null,null,null,"Tatil",null,null,"Tatil"]
[21,"Tatil",null,null,"Tatil",null,null,null,"Tatil",null,null,"Tatil"]
[22]
[23]
[24]
[25]
[26]
[27,"Tatil",null,null,"Tatil",null,null,null,"Tatil",null,null,"Tatil"]
[28,"Tatil",null,null,"Tatil",null,null,null,"Tatil",null,null,"Tatil"]
[29]
[30]
[31]

{"sheet":"K.EKDERS","index":12,"n_rows":10,"n_cols":2,"rows_kept":10,"cut":false,"hidden":false,"merged":[[0,0,0,1]]}
["KADROLU EKDERS"]
["1-","Ekders Programından Takvimi güncelleyiniz. Puntajı doldurunuz. Ve  puantaj sayfasını yenileyiniz. Çıktı alınız."]
["2-","Ana Sayfaya dönüp KBS dosyası oluştur butonuna tıklayınız. "]
["3-","KBS Dosyası \"Yıl-Ay\" formatında güncel isimle hazırlanacak ve dosyanızın bulunduğu klasöre kayıt edilecektir."]
["4-","KBS yi açınız. Ekders hesaplamada hesaplama seçiniz. Aşağıda Aynı Banka kısmına tıklayıp seç deyiniz."]
["5-","Dosya yüklede yönergeleri takip edip dosyanızı göstererek yükle deyiniz. Kayıt butonuna basınız."]
["6-","F5 ile sayfayı yenileyiniz. Kesinti ve sınav görevi varsa yapınız. Ardından onaylayıp raporlara geçiniz. "]
["7-","İcmal,Bordro, Banka Listesi çıktılarını alınız. (Sayfalar dikey gelir yatay yaparak yazdırınız.)"]
["8- Çıktıları Kaşe-İmza- mühür den sonra üst yazıyla İlçenize gönderiniz."]
["*","Başka okuldan gelen öğretmenlerinizin de puantajlarını doldurup okullarına göndermeyi unutmayınız."]

{"sheet":"ÜP","index":13,"n_rows":20,"n_cols":36,"rows_kept":20,"cut":false,"hidden":false,"merged":[[11,2,11,19],[0,0,0,35],[1,0,1,35],[2,0,2,1],[2,2,2,3],[3,0,3,1],[4,0,4,1],[5,0,5,1],[10,2,10,3],[10,4,10,8],[10,13,10,14],[10,15,10,26],[19,27,19,32],[15,1,15,2],[16,1,16,2],[16,27,16,32],[17,1,17,2],[17,27,17,32],[18,1,18,2],[18,27,18,32]]}
["KARABURUN ANADOLU İMAM HATİP LİSESİ MÜDÜRLÜĞÜ"]
["ÜCRETLİ ÖĞRETMEN EKDERS ÇİZELGESİ"]
["Okulun Adı",null,"KARABURUN ANADOLU İMAM HATİP LİSESİ"]
["Başlangıç Tarihi",null,"2019-01-01"]
["Bitiş Tarihi",null,"2019-01-14"]
[]
["SIRA \nNO","TCKN","ADI ve \nSOYADI","UNVAN",15,16,17,18,19,20,21,22,23,24,25,26,27,28,29,30,31,1,2,3,4,5,6,7,8,9,10,11,12,13,14,"Toplam \nSaat"]
[1,26645214954,"Gülhan KUŞGİL","Ücretli Öğretmen",null,null,null,null,null,null,null,null,null,null,null,null,null,null,null,null,null,null,3,7,8,null,null,8,4,3,7,8,null,null,8,{"$f":"SUM(E8:AI8)","v":56}]
[]
["","","","",null,null,null,null,null,null,null,null,null,null,null,null,null,null,null,null,null,null,null,null,null,null,null,null,null,null,null,null,null,null,null,{"$f":"SUM(AJ8:AJ9)","v":56}]
[null,"NOT:","Yukarıda belirtilen görevlerde ",null,"01 Ocak-14 Ocak ",null,null,null,null,"tarihleri arasında  ",null,null,null,{"$f":"SUM(AJ8:AJ9)","v":56},null,"saat ders okutulmuştur"]
[]
[]
[]
[]
[null,"DÜZENLEYEN"]
[null,null,null,null,null,null,null,null,null,null,null,null,null,null,null,null,null,null,null,null,null,null,null,null,null,null,null,"UYGUNDUR"]
[null,"Mehmet MİNTAŞ"]
[null,"Müdür Yardımcısı",null,null,null,null,null,null,null,null,null,null,null,null,null,null,null,null,null,null,null,null,null,null,null,null,null,"M.Mahsum GÜLTEKİN"]
[null,null,null,null,null,null,null,null,null,null,null,null,null,null,null,null,null,null,null,null,null,null,null,null,null,null,null,"Okul Müdürü "]

{"sheet":"BRD","index":14,"n_rows":27,"n_cols":23,"rows_kept":27,"cut":false,"hidden":false,"merged":[[0,0,1,23],[2,9,3,19],[2,20,2,21],[2,22,2,23],[3,20,3,21],[3,22,3,23],[4,11,7,11],[4,0,7,0],[4,1,7,1],[4,2,7,2],[4,3,7,3],[4,4,7,4],[4,5,7,5],[4,6,7,6],[4,7,7,7],[4,8,7,8],[4,9,7,9],[4,10,7,10],[8,22,8,23],[4,12,7,12],[4,13,7,13],[4,14,7,14],[4,15,7,15],[4,16,7,16],[4,17,7,17],[4,18,7,18],[4,19,7,19],[4,20,7,20],[4,21,7,21],[4,22,7,23],[19,0,19,2],[9,22,9,23],[10,0,10,3],[10,22,10,23],[12,0,12,3],[12,7,12,9],[12,18,12,19],[12,20,12,21],[12,22,12,23],[13,18,13,19],[13,22,13,23],[14,18,14,19],[14,22,14,23],[15,22,15,23]]}
["KARABURUN ANADOLU İMAM HATİP LİSESİ MÜDÜRLÜĞÜ"]
[]
["OKUL / KURUM",null,null,null,null,null,null,null,"KATSAYI","ÇEŞİTLİ ÖDEMELER BORDROSU",null,null,null,null,null,null,null,null,null,null,"AİT OLDUĞU AY",null,{"$f":"ÜP!E11","v":"01 Ocak-14 Ocak "}]
["KARABURUN ANADOLU İMAM HATİP LİSESİ MÜDÜRLÜĞÜ",null,null,null,null,null,null,null,0.13056000000000001,null,null,null,null,null,null,null,null,null,null,null,"AİT OLDUĞU YIL",null,2018]
["SIRA NO","T:C:","GÖREVİ","ADI  SOYADI","TOP    GÜN","GÜN      GECE","SAAT ÜCRETİ","TOPLAM SAAT","BRÜT ÜCRET","%20,5 SSK DV.PAYI","%24,5 SSK DV.PAYI","AYLIK VRG.    MTRH.","TAHAKKUK TOPLAMI","YILLIK VERGİ MATRAHI TOPLAMI","GELİR VRGS.\n(AGİ)","DAMGA VERGİSİ","% 20,5 SSK DV.PAYI","% 14 SSK İŞÇİ PAYI","% 24,5 SSK   DEV.   PAYI","% 7,5    SSK    İŞÇİ   PAYI","KESİNTİ TOPLAMI"," ELE       GEÇEN      NET      TUTAR","AÇIKLAMALAR"]
["SIRA",null,"GÖREVİ","ADI","TOP.GÜN",null,null,"SAAT","BRÜT","% 19,5 SSK","% 19,5 SSK","AYLIK VRG.","TAHAKKUK","TAHAKKUK","GELİR VRGS.",null,"%22,5 SSK","%22,5 SSK","%22,5 SSK","%22,5 SSK","KESİNTİ","NET"]
[]
[]
[1,{"$f":"ÜP!B8","v":26645214954},"Üc. Türkçe Öğretmeni",{"$f":"ÜP!C8","v":"Gülhan KUŞGİL"},8,140,{"$f":"I4*F9","v":18.278400000000001},{"$f":"ÜP!AJ8","v":56},{"$f":"ROUND(H9*G9,2)","v":1023.59},{"$f":"ROUND(I9*20.5/100,2)","v":209.84},{"$f":"SUM(K7:K7)","v":0},{"$f":"I9-R9-T9","v":880.29},{"$f":"I9+J9+K9","v":1233.43},0,{"$f":"ROUND(L9*15/100,2)","v":132.04},{"$f":"(I9*0.759)/100","v":7.7690481},{"$f":"J9","v":209.84},{"$f":"ROUND(I9*14/100,2)","v":143.30000000000001},{"$f":"K9","v":0},{"$f":"ROUND(S9/22.5*7.5,2)","v":0},{"$f":"O9+P9+Q9+R9+S9+T9","v":492.94904809999997},{"$f":"M9-U9","v":740.48095190000004},{"$f":"W3","v":"01 Ocak-14 Ocak "}]
[2]
["T  O  P  L  A  M",null,null,null,{"$f":"SUM(E9:E10)","v":8},{"$f":"SUM(F9:F10)","v":140},{"$f":"SUM(G9:G10)","v":18.278400000000001},{"$f":"SUM(H9:H10)","v":56},{"$f":"SUM(I9:I10)","v":1023.59},{"$f":"ROUND(I11*20.5/100,2)","v":209.84},{"$f":"SUM(K10:K10)","v":0},{"$f":"I11-R11-T11","v":880.29},{"$f":"I11+J11+K11","v":1233.43},{"$f":"SUM(N10:N10)","v":0},{"$f":"ROUND(L11*15/100,2)","v":132.04},{"$f":"SUM(P9:P10)","v":7.7690481},{"$f":"J11","v":209.84},{"$f":"R9","v":143.30000000000001},{"$f":"K11","v":0},{"$f":"ROUND(S11/22.5*7.5,2)","v":0},{"$f":"O11+P11+Q11+R11+S11+T11","v":492.94904809999997},{"$f":"M11-U11","v":740.48095190000004}]
[]
[{"$f":"A4","v":"KARABURUN ANADOLU İMAM HATİP LİSESİ MÜDÜRLÜĞÜ"},null,null,null,"ÇALIŞANLARI ADINA",null,null,{"$f":"W3","v":"01 Ocak-14 Ocak "},null,null,"AYINA   AİT  TOPLAM",null,null,{"$f":"M11","v":1233.43},"TL TAHAKKUK ETMİŞTİR.",null,null,null,"DÜZENLEYEN",null,{"$f":"TODAY()","v":"2019-03-15"},null,"GERÇEKLEŞTİRME GÖREVLİSİ"]
[null,null,null,null,null,null,null,null,null,null,null,null,null,null,null,null,null,"ADI SOYADI",{"$f":"ÜP!B18","v":"Mehmet MİNTAŞ"},null,null,null,{"$f":"ÜP!AB17","v":"UYGUNDUR"}]
[null,null,null,null,null,null,null,null,null,null,null,null,null,null,null,null,null,"ÜNVANI",{"$f":"ÜP!B19","v":"Müdür Yardımcısı"},null,null,null,{"$f":"ÜP!AB19","v":"M.Mahsum GÜLTEKİN"}]
[null,null,null,null,null,null,null,null,null,null,null,null,null,null,null,null,null,"İMZASI",null,null,null,null,{"$f":"ÜP!AB20","v":"Okul Müdürü "}]
[]
[]
[]
[{"$f":"ASG.GEÇ.BORD.!D4/(12*30)","v":85.266666666666666}]
[]
[]
[]
[]
[]
[]
[null,null,null,null,null,null,null,null,null,1]

{"sheet":"ASG.GEÇ.BORD.","index":15,"n_rows":14,"n_cols":30,"rows_kept":14,"cut":false,"hidden":false,"merged":[[0,0,0,29],[4,1,5,1],[4,2,5,2],[4,3,5,3],[4,4,4,5],[4,6,4,7],[4,8,4,9],[4,10,4,11],[4,12,4,13],[4,14,4,15],[4,16,4,17],[4,18,4,19],[4,20,4,21],[4,22,4,23],[4,24,4,25],[7,1,7,3],[9,7,9,9],[9,20,9,22],[10,18,10,19],[10,20,10,22],[11,26,11,29],[12,18,12,19],[12,26,12,29],[13,26,13,29],[4,28,4,29],[10,26,10,29],[4,26,4,27],[11,18,11,19],[11,20,11,22]]}
["ASGARİ GEÇİM İNDİRİMİNE AİT BORDRO"]
["Muhasebe Birimi Kodu / Adı",null,null,"35107 Karaburun Malmüdürlüğü"]
["Kurum Kodu / Adı",null,null,"13.1.33.62 Milli Eğitim Bakanlığı",null,null,"Birim Kodu / Adı :",null,851,"Karaburun Anadolu  İmam Hatip Lisesi Müdürlüğü"]
["Asgari Ücretin Yıllık Brüt Tutarı",null,null,{"$f":"2558*12","v":30696}]
[null,"Sıra No","Sicil No","Adı Soyadı","01 OCAK            14 OCAK",null,"15 OCAK            14 ŞUBAT",null,"15 ŞUBAT         14 MART",null,"15 MART           14 NİSAN",null,"15 NİSAN          14 MAYIS",null,"15 MAYIS          14 HAZİRAN",null,"15 HAZİRAN       14 TEMMUZ",null,"15 TEMMUZ     14 AĞUSTOS",null,"15 AĞUSTOS        30 AĞUSTOS",null,"15 EYLÜL             14 EKİM",null,"15 EKİM            14 KASIM",null,"15 KASIM           14 ARALIK",null,"15 ARALIK          31 ARALIK"]
[null,null,null,null,"Oran","Tutar","Oran","Tutar","Oran","Tutar","Oran","Tutar","Oran","Tutar","Oran","Tutar","Oran","Tutar","Oran","Tutar","Oran","Tutar","Oran","Tutar","Oran","Tutar","Oran","Tutar","Oran","Tutar"]
[null,1,{"$f":"BRD!B9","v":26645214954},{"$f":"BRD!D9","v":"Gülhan KUŞGİL"},50,{"$f":"191.85/2","v":95.924999999999997},null,null,null,null,null,null,null,null,null,null,null,null,null,null,null,null,50,152.21,50,152.21,50,152.21,50,{"$f":"AB7/2","v":76.105000000000004}]
[null,"TOPLAM",null,null,null,null,null,null,null,null,null,null,null,null,null,null,null,null,null,null,null,null,null,{"$f":"X7","v":152.21},null,152.21,null,{"$f":"AB7","v":152.21}]
[]
[null,{"$f":"J3","v":"Karaburun Anadolu  İmam Hatip Lisesi Müdürlüğü"},null,null,"ÇALIŞANLARI ADINA",null,null,{"$f":"BRD!H13","v":"01 Ocak-14 Ocak "},null,null,"AYINA   AİT  TOPLAM",null,null,{"$f":"Z8","v":152.21},"TL TAHAKKUK ETMİŞTİR.",null,null,null,null,null,"DÜZENLEYEN",null,null,{"$f":"TODAY()","v":"2019-03-15"},null,null,"GERÇEKLEŞTİRME GÖREVLİSİ"]
[null,null,null,null,null,null,null,null,null,null,null,null,null,null,null,null,null,null,"ADI SOYADI",null,{"$f":"BRD!S14","v":"Mehmet MİNTAŞ"},null,null,null,null,null,{"$f":"BRD!W14","v":"UYGUNDUR"}]
[null,null,null,null,null,null,null,null,null,null,null,null,null,null,null,null,null,null,"ÜNVANI",null,{"$f":"BRD!S15","v":"Müdür Yardımcısı"}]
[null,null,null,null,null,null,null,null,null,null,null,null,null,null,null,null,null,null,"İMZASI",null,null,null,null,null,null,null,{"$f":"ÜP!AB19","v":"M.Mahsum GÜLTEKİN"}]
[null,null,null,null,null,null,null,null,null,null,null,null,null,null,null,null,null,null,null,null,null,null,null,null,null,null,{"$f":"ÜP!AB20","v":"Okul Müdürü "}]

{"sheet":"ANA","index":16,"n_rows":18,"n_cols":5,"rows_kept":18,"cut":false,"hidden":false,"merged":[[0,1,0,14],[1,0,35,0],[1,1,1,4],[2,1,2,4]]}
[]
[null,"İZMİR/KARABURUN ANADOLU İMAM HATİP LİSESİ MÜDÜRÜĞÜ"]
[null," PERİYODİK İŞLER TAKİBİ YÖNETİCİ PROGRAMI"]
[null,"SIRA NO","İŞ ADI","TAKİP SÜRECİ","İŞ YAPIMI"]
[null,1,"MAAŞ GÜNCELLEME","Her Ayın sonuna Kadar","Nasıl Yapılır-Tıklayınız"]
[null,2,"EK DERSLER (KADROLU+ DIŞ PERSONEL)","Her Ayın sonuna Kadar","Nasıl Yapılır-Tıklayınız"]
[null,3,"TYP İŞKUR PUANTAJLARI","Her Ayın sonuna Kadar","Nasıl Yapılır-Tıklayınız"]
[null,4,"TAŞERON İŞÇİ PUANTAJI","Her Ayın sonuna Kadar","Nasıl Yapılır-Tıklayınız"]
[null,5,"GÜVENLİKÇİ PUANTAJI","Her Ayın sonuna Kadar","Nasıl Yapılır-Tıklayınız"]
[null,6,"TAŞIMALI EĞİTİM SERVİS  PUANTAJI","Her Ayın sonuna Kadar","Nasıl Yapılır-Tıklayınız"]
[null,7,"TAŞIMALI EĞİTİM YEMEK  PUANTAJI","Her Ayın sonuna Kadar","Nasıl Yapılır-Tıklayınız"]
[null,8,"PROJE RAPORLAMALARI (Sıfır Atık.KTS, MÖP vs.)","Her Ayın sonuna Kadar","Nasıl Yapılır-Tıklayınız"]
[null,9,"ÜCRETLİ ÖĞRETMEN ÖDEMESİ","Ayın 1-15 Arası ","Nasıl Yapılır-Tıklayınız"]
[null,10,"BELİRLİ GÜN VE HAFTALAR TAKİBİ","Ayın 1-15 Arası ","Nasıl Yapılır-Tıklayınız"]
[null,11,"KURUL VE  KOMİSYON ÇALIŞMA TAKİPLERİ","Ayın 1-15 Arası ","Nasıl Yapılır-Tıklayınız"]
[null,12,"DERS DENETİMLERİ","Ayın 1-15 Arası ","Nasıl Yapılır-Tıklayınız"]
[null,13,"ÖĞRENCİ DEVAMSIZLIK TAKİBİ","Her Gün (Ders Bitimi)","Nasıl Yapılır-Tıklayınız"]
[null,14,"DYS+ MEB E-POSTA+ WHATSAPP-TWİTTER","Hergün (Arada kontrol)","Nasıl Yapılır-Tıklayınız"]

{"sheet":"MAAŞ","index":17,"n_rows":24,"n_cols":19,"rows_kept":24,"cut":false,"hidden":false,"merged":[[18,8,18,9],[1,2,1,5],[2,2,2,5],[4,7,4,8],[16,7,16,8],[17,0,17,18],[23,8,23,16],[24,2,24,3],[24,8,24,16],[37,2,37,11],[20,2,20,3],[20,8,20,16],[21,2,21,3],[21,8,21,16],[22,2,22,3],[22,8,22,16]]}
[]
[null,"KURUMU","KARABURUN İLÇE MİLLİ EĞİTİM MÜDÜRLÜĞÜ",null,null,null,"DÖNEMİ ","2018-","EKİM"]
[null,"BİRİMİ","KARABURUN ANADOLU İMAM HATİP LİSESİ "]
["S.N","MALİYE KİŞİ NO","T.C KİMLİK NO","ADI SOYADI","ÜNVANI","UNVAN KODU","DEĞİŞİKLİK TÜRÜ","GÖREVDEN AYRILMA","GÖREVE BAŞLAMA","BU D/K HAK ETTİĞİ TARİH","KADRO DER.","AYLIK DER.","EK GÖSTERGE","YAN ÖDEME","UZMANLIK"," ÖZEL HİZMETTAZMİNAT ORANI","İCRA DOSYA NO","KESİLECEK MİKTAR","MALİYEDEKİ DEFTER SAYFA NO"]
[1]
[2]
[3]
[4]
[5]
[6]
[7]
[8]
[9]
[10]
[11]
[12]
[13]
["Açıklama : Ay sonunda öğretmen başlaması, ayrılması, 7 gün den fazla rapor, derece, kademe veya terfi gibi maaşı etkileyen tüm etkenleri bu forma doldurarak Belgeleri ile birlikte İlçe MEM Destek Bölümüne Gönderiniz."]
[null,"          Yukarıda beyan edilen bilgilerin eksiksiz ve  doğru olduğunu tastik ederim. ",null,null,null,null,null,null,{"$f":"TODAY()","v":"2019-03-15"}]
[]
[null,null,"Düzenleyen",null,null,null,null,null,"Kayıtlarımıza Uygundur."]
[null,null,"Mehmet MİNTAŞ"]
[null,null,"Müdür Yardımcısı",null,null,null,null,null,"M.MAHSUM GÜLTEKİN "]
[null,null,null,null,null,null,null,null,"Okul Müdürü"]

{"sheet":"ÜCRETLİ","index":18,"n_rows":28,"n_cols":2,"rows_kept":28,"cut":false,"hidden":false,"merged":[[0,0,0,1],[10,0,10,1],[27,0,27,1]]}
["SGK GİRİŞİ"]
["1-","e-devlet ya da şifrenizle  SGK e-bildirgeye giriniz ve Asıl Prim Ödemeleri tıklanız "]
["2-","Kutucuktan 13 Seçiniz ve bir önceki aydan bilgi getir tiki atınız."]
["3-","Gelen listeden öğretmeninizi seçerek PEK tutarı kısmına Bordrodan  Brüt Ücret Tutarını giriniz."]
["4-","Gün sayısı için Toplam Ek Ders saatini 7,5 e bölünüz virgülden sonra 0 hariç ne varsa üste tamamlayınız. Örnek: 8,0001=9 Olacak."]
["5-","Eksik gün ayın gün sayısına göre kalan gündür. Eksik Gün Nedeni 07- Puantaj Kayıtları Seçiniz"]
["6-","Onay Ekranına Geçiniz. Bu ekrandaki  Prim Tutarı Bordronuzdaki İşçi Payı+Devlet Payı toplamına eşit olmalıdır."]
[null,"a) Eşitse anamenü- Onaylanmış Prim… Tahakkuk Fişi ve Hizmet Listesi 3 er nüsha Yazdırınız. Kaşe-Mühür-İmza Yapınız."]
[null,"b) Değilse işlemlerinizi tekrar gözden geçiriniz. Yalnızca 0,01 Tl Fark çıkabilir. Bordrodaki Devlet veya İşçi Paylarından denkleştirme yapınız. Kuruş farkı olmamalıdır."]
[]
["MYS ÖDEMESİ"]
["Gerçekleştirme Görevlisi Olarak giriş yapınız. Rol seçip Harcamalar tıklayınız."]
["1-","Yeni Harcama kısmına Giriniz. Ve Gelen Formu doldurarak kayıt ediniz."]
["2-","Yeni açıklama Ekle butonunu çalıştırıp doldurunuz ve ekle deyiniz.Ön Ödeme Yok kısmını unutmayınız."]
["3-","Kaydet basınız ve aşağıda ilerle giriniz."]
["4-","Gelen Formda harcama türüne (HAZİNE ÜZERİNDEN YURTİÇİ HESABA) İşaretleyiniz ve yine Kaydet- İlerle yapınız."]
["5-","Gelen ekranda ödemenizin rakamlarına ve ardından \"ödeme emri oluştur\" a tıklayınız.."]
["6-","Hak Sahibi Ekle Seçip TC Giriniz İBAN Seçiniz. Yoksa küçük kalem resmine tıklayıp İBAN tanımlayınız."]
["7-","Detay Ekle-Ödeme Kalemi Ekle iki tane yapınız."]
["8-","İlk Kalemi \"Ders Görevi Karşılığında Görevlendirilenlerin.. \" seçip  Bordrodaki Brüt Ücreti satırdaki son bölüme giriniz."]
["9-","İkinci Kalem SGK seçip Sosyal Güvenlik Prim … seçiniz ve Bordrodaki devlet payını giriniz."]
["10-","Detay Ekle den 4 Adet Kesinti tıklayınız "]
[null,"1- Vergi (Damga vergisi) 2- Vergi (Gelir Vergisi) 3- SGK :Malulluk Yaşlılık… (İşveren-İşçi) ; Bordrodan Devlet Payı  4- SGK : Malulluk İyaşçılık (İştirakçi- İşçi) ; İşçi Payı Giriniz)"]
["11-","Diğer Detay Ekle Seçiniz İdirim-Ücretlerde Vergi İndirimi ve son kısma AGİ( Asgari Geçim İndirimi) giriniz."]
[null,"Kaydet İlerle-ilerle Onaya Gönder -Bitti"]
["13 -","Müdür (Harcama Yetkilisi) olarak  giriniz, Elektronik İmzasız Onayla-Muhasebeye Gönder ve 3 nüsha Çıktı -mühür-imzalar işlem tamamdır."]
[]
["******SGK Prim çizelgeleri ve Ödeme Emri belgesi ikişer nüsha bordro,AGİ ve puantaj birer nüsha paketleyip Malmüdürlğüne birer nüsha okula arşiv."]

{"sheet":"EkDers","index":19,"n_rows":53,"n_cols":49,"rows_kept":53,"cut":false,"hidden":false,"merged":[[0,9,0,16]]}
[null,null,null,null,null,null,null,null,null,"TEK HAFTALIK\nÜCRET TABLOSU",null,null,null,null,null,null,null,"2019-01-01","2019-01-02","2019-01-03","2019-01-04","2019-01-05","2019-01-06","2019-01-07","2019-01-08","2019-01-09","2019-01-10","2019-01-11","2019-01-12","2019-01-13","2019-01-14","2019-01-15","2019-01-16","2019-01-17","2019-01-18","2019-01-19","2019-01-20","2019-01-21","2019-01-22","2019-01-23","2019-01-24","2019-01-25","2019-01-26","2019-01-27","2019-01-28","2019-01-29","2019-01-30","2019-01-31","GENEL"]
["S.N.","Aktif","Saymanlık  Numarası","Adı ve Soyadı","Görevi","TCKN",null,"Veri Tip","Veri Açıklama","Pt","Sa","Çr","Pr","Cm","Ct","Pz","TOPLAM","Salı","Çarşamba","Perşembe","Cuma","Cumartesi","Pazar","Pazartesi","Salı","Çarşamba","Perşembe","Cuma","Cumartesi","Pazar","Pazartesi","Salı","Çarşamba","Perşembe","Cuma","Cumartesi","Pazar","Pazartesi","Salı","Çarşamba","Perşembe","Cuma","Cumartesi","Pazar","Pazartesi","Salı","Çarşamba","Perşembe","TOPLAM"]
[1,true,null,"M.MAHSUM GÜLTEKİN","Okul Müdürü",32606090826,"+",101,"Ders Nit. Yönetim Görevi",6,6,6,6,6,null,null,{"$f":"SUM(J3:P3)","v":30},6,6,6,6,null,null,6,6,6,6,6,null,null,6,6,6,6,6,null,null,6,6,6,6,6,null,null,6,6,6,6,{"$f":"SUM(R3:AV3)","v":138}]
[null,null,null,null,null,32606090826,"-",117,"Takviye kursu(Haftasonu/Gece)",null,null,null,null,null,null,null,{"$f":"SUM(J4:P4)","v":0},null,null,null,null,null,null,null,null,null,null,null,null,null,null,null,null,null,null,null,null,null,null,null,null,null,null,null,null,null,null,null,0]
[2,true,null,"MEHMET MİNTAŞ","Müdür Yardımcısı",13634704480,"+",101,"Ders Nit. Yönetim Görevi",5,5,5,5,6,null,null,26,5,5,5,6,null,null,5,5,5,5,6,null,null,5,5,5,5,6,null,null,5,5,5,5,6,null,null,5,5,5,5,119]
[null,null,null,null,null,13634704480,"-",117,"Takviye kursu(Haftasonu/Gece)",null,null,null,null,null,null,2,{"$f":"SUM(J6:P6)","v":2},null,null,null,null,null,2,null,null,null,null,null,null,2,null,null,null,null,null,null,2,null,null,null,null,null,null,2,null,null,null,null,8]
[null,null,null,null,null,13634704480,"-",119,"Nöbet Görevi",null,null,null,3,null,null,null,{"$f":"SUM(J7:P7)","v":3},null,null,3,null,null,null,null,null,null,3,null,null,null,null,null,null,3,null,null,null,null,null,null,null,null,null,null,null,null,null,null,9]
[3,true,null,"AYNUR BAŞARAN","Öğretmen ",18575127534,"+",101,"Gündüz",null,null,null,2,8,null,null,10,null,null,2,8,null,null,null,null,null,2,8,null,null,null,null,null,2,8,null,null,null,null,null,null,null,null,null,null,null,null,null,30]
[null,null,null,null,null,18575127534,"-",110,"Ekders Yer.Geç.Gör. - Gündüz",null,null,null,2,2,null,null,4,null,null,2,2,null,null,null,null,null,2,2,null,null,null,null,null,2,2,null,null,null,null,null,null,null,null,null,null,null,null,null,12]
[null,null,null,null,null,18575127534,"-",116,"Takviye kursu(Gündüz)",null,null,1,1,null,null,null,{"$f":"SUM(J10:P10)","v":2},null,1,1,null,null,null,null,null,1,1,null,null,null,null,null,1,1,null,null,null,null,null,null,null,null,null,null,null,null,null,null,6]
[null,null,null,null,null,18575127534,"-",119,"Nöbet Görevi",null,null,null,3,null,null,null,{"$f":"SUM(J11:P11)","v":3},null,null,3,null,null,null,null,null,null,3,null,null,null,null,null,null,3,null,null,null,null,null,null,null,null,null,null,null,null,null,null,9]
[4,true,null,"CANER ÇELİK","Öğretmen ",36899178056,"+",101,"Gündüz",null,null,null,null,7,null,null,7,null,null,null,7,null,null,null,null,null,null,7,null,null,null,null,null,null,7,null,null,null,null,null,null,null,null,null,null,null,null,null,21]
[null,null,null,null,null,36899178056,"-",110,"Ekders Yer.Geç.Gör. - Gündüz",null,null,1,null,1,null,null,2,null,1,null,1,null,null,null,null,1,null,1,null,null,null,null,1,null,1,null,null,null,null,null,null,null,null,null,null,null,null,null,6]
[null,null,null,null,null,36899178056,"-",116,"Takviye kursu(Gündüz)",1,1,null,null,null,null,null,{"$f":"SUM(J14:P14)","v":2},1,null,null,null,null,null,1,1,null,null,null,null,null,1,1,null,null,null,null,null,null,null,null,null,null,null,null,null,null,null,null,5]
[null,null,null,null,null,36899178056,"-",119,"Nöbet Görevi",null,3,null,null,null,null,null,3,3,null,null,null,null,null,null,3,null,null,null,null,null,null,3,null,null,null,null,null,null,null,null,null,null,null,null,null,null,null,null,9]
[5,true,null,"ESİN GÜMÜŞ","Öğretmen ",20566694390,"+",101,"Gündüz",null,null,null,null,3,null,null,3,null,null,null,3,null,null,null,null,null,null,null,null,null,null,null,null,null,3,null,null,null,null,null,null,null,null,null,null,null,null,null,6]
[null,null,null,null,null,20566694390,"-",110,"Ekders Yer.Geç.Gör. - Gündüz",null,null,2,2,null,null,null,4,null,2,2,null,null,null,null,null,1,2,null,null,null,null,null,2,2,null,null,null,null,null,null,null,null,null,null,null,null,null,null,11]
[null,null,null,null,null,20566694390,"-",116,"Takviye kursu(Gündüz)",null,1,1,null,null,null,null,{"$f":"SUM(J18:P18)","v":2},1,1,null,null,null,null,null,1,1,null,null,null,null,null,1,1,null,null,null,null,null,null,null,null,null,null,null,null,null,null,null,6]
[null,null,null,null,null,20566694390,"-",117,"Takviye kursu(Haftasonu/Gece)",null,null,null,null,null,null,2,{"$f":"SUM(J19:P19)","v":2},null,null,null,null,null,2,null,null,null,null,null,null,2,null,null,null,null,null,null,2,null,null,null,null,null,null,null,null,null,null,null,6]
[null,null,null,null,null,20566694390,"-",119,"Nöbet Görevi",null,3,null,null,null,null,null,3,3,null,null,null,null,null,null,3,null,null,null,null,null,null,3,null,null,null,null,null,null,null,null,null,null,null,null,null,null,null,null,9]
[6,true,null,"FADİME AKÇAKAYA POYRAZ","Öğretmen (Y.L.)",10862570672,"+",101,"Gündüz",null,null,null,1,5,null,null,6,null,null,1,5,null,null,null,null,null,1,5,null,null,null,null,null,1,5,null,null,null,null,null,null,null,null,null,null,null,null,null,18]
[null,null,null,null,null,10862570672,"-",110,"Ekders Yer.Geç.Gör. - Gündüz",null,null,null,1,2,null,null,3,null,null,1,2,null,null,null,null,null,1,2,null,null,null,null,null,1,2,null,null,null,null,null,null,null,null,null,null,null,null,null,9]
[null,null,null,null,null,10862570672,"-",119,"Nöbet Görevi",null,null,null,null,3,null,null,3,null,null,null,3,null,null,null,null,null,null,3,null,null,null,null,null,null,3,null,null,null,null,null,null,null,null,null,null,null,null,null,9]
[7,true,null,"MEDİNE ARI KAPLAN","Öğretmen ",18745429628,"+",101,"Gündüz",null,null,null,5,4,null,null,9,null,null,null,4,null,null,null,null,null,5,4,null,null,null,null,null,5,4,null,null,null,null,null,null,null,null,null,null,null,null,null,22]
[null,null,null,null,null,18745429628,"-",110,"Ekders Yer.Geç.Gör. - Gündüz",null,null,2,1,1,null,null,4,null,2,null,1,null,null,null,null,2,1,1,null,null,null,null,2,1,1,null,null,null,null,null,null,null,null,null,null,null,null,null,11]
[null,null,null,null,null,18745429628,"-",116,"Takviye kursu(Gündüz)",null,1,null,null,null,null,null,{"$f":"SUM(J26:P26)","v":1},1,null,null,null,null,null,null,1,null,null,null,null,null,null,1,null,null,null,null,null,null,null,null,null,null,null,null,null,null,null,null,3]
[null,null,null,null,null,18745429628,"-",119,"Nöbet Görevi",null,null,3,null,null,null,null,3,null,3,null,null,null,null,null,null,3,null,null,null,null,null,null,3,null,null,null,null,null,null,null,null,null,null,null,null,null,null,null,9]
[8,true,null,"MEHMET PEKEL","Öğretmen ",17744647606,"+",101,"Gündüz",null,null,null,null,5,null,null,5,null,null,null,5,null,null,null,null,null,null,5,null,null,null,null,null,null,5,null,null,null,null,null,null,null,null,null,null,null,null,null,15]
[null,null,null,null,null,17744647606,"-",110,"Ekders Yer.Geç.Gör. - Gündüz",null,null,3,null,2,null,null,5,null,3,null,2,null,null,null,null,3,null,2,null,null,null,null,3,null,2,null,null,null,null,null,null,null,null,null,null,null,null,null,15]
[null,null,null,null,null,17744647606,"-",117,"Takviye kursu(Haftasonu/Gece)",null,null,null,null,null,null,6,{"$f":"SUM(J30:P30)","v":6},null,null,null,null,null,6,null,null,null,null,null,null,6,null,null,null,null,null,null,6,null,null,null,null,null,null,null,null,null,null,null,18]
[null,null,null,null,null,17744647606,"-",119,"Nöbet Görevi",3,null,null,null,null,null,null,3,null,null,null,null,null,null,3,null,null,null,null,null,null,3,null,null,null,null,null,null,null,null,null,null,null,null,null,null,null,null,null,6]
[9,true,null,"MUHAMMET KAŞIKÇI","Öğretmen (Y.L.)",16732554520,"+",101,"Gündüz",null,null,5,null,null,null,null,5,null,5,null,null,null,null,null,null,5,null,null,null,null,null,null,5,null,null,null,null,null,null,null,null,null,null,null,null,null,null,null,15]
[null,null,null,null,null,16732554520,"-",103,"%25 Fazla Gündüz",null,null,null,null,null,null,null,{"$f":"SUM(J33:P33)","v":0},null,null,null,null,null,null,null,null,null,null,null,null,null,null,null,null,null,null,null,null,null,null,null,null,null,null,null,null,null,null,null,0]
[null,null,null,null,null,16732554520,"-",107,"Sınav Görevi",null,null,null,null,null,null,null,{"$f":"SUM(J34:P34)","v":0},null,null,null,null,null,null,null,null,null,null,null,null,null,null,null,null,null,null,null,null,null,null,null,null,null,null,null,null,null,null,null,0]
[null,null,null,null,null,16732554520,"-",110,"Ekders Yer.Geç.Gör. - Gündüz",null,2,2,null,null,null,null,4,2,2,null,null,null,null,null,2,2,null,null,null,null,null,2,2,null,null,null,null,null,null,null,null,null,null,null,null,null,null,null,{"$f":"SUM(R35:AV35)","v":12}]
[null,null,null,null,null,16732554520,"-",116,"Takviye kursu(Gündüz)",1,1,null,1,null,null,null,{"$f":"SUM(J36:P36)","v":3},1,null,1,null,null,null,1,1,null,1,null,null,null,1,1,null,1,null,null,null,null,null,null,null,null,null,null,null,null,null,null,8]
[null,null,null,null,null,16732554520,"-",117,"Takviye kursu(Haftasonu/Gece)",null,null,null,null,null,null,4,{"$f":"SUM(J37:P37)","v":4},null,null,null,null,null,4,null,null,null,null,null,null,4,null,null,null,null,null,null,4,null,null,null,null,null,null,null,null,null,null,null,12]
[null,null,null,null,null,16732554520,"-",119,"Nöbet Görevi",null,3,null,null,null,null,null,3,3,null,null,null,null,null,null,3,null,null,null,null,null,null,3,null,null,null,null,null,null,null,null,null,null,null,null,null,null,null,null,9]
[10,true,null,"MUZAFFER YENİLMEZ","Öğretmen ",37655023382,"+",101,"Gündüz",null,null,null,null,null,null,null,0,null,null,null,null,null,null,null,null,null,null,null,null,null,null,null,null,null,null,null,null,null,null,null,null,null,null,null,null,null,null,null,0]
[null,null,null,null,null,37655023382,"-",110,"Ekders Yer.Geç.Gör. - Gündüz",null,null,null,2,null,null,null,2,null,null,2,null,null,null,null,null,null,2,null,null,null,null,null,null,2,null,null,null,null,null,null,null,null,null,null,null,null,null,null,6]
[null,null,null,null,null,37655023382,"-",119,"Nöbet Görevi",null,null,null,null,null,null,null,0,null,null,null,null,null,null,null,null,null,null,null,null,null,null,null,null,null,null,null,null,null,null,null,null,null,null,null,null,null,null,null,0]
[11,true,null,"RÜMEYSA KARAKOÇ","Öğretmen ",23021190772,"+",101,"Gündüz",null,null,null,7,8,null,null,15,null,null,7,8,null,null,null,null,null,null,null,null,null,null,null,null,7,8,null,null,null,null,null,null,null,null,null,null,null,null,null,30]
[null,null,null,null,null,23021190772,"-",107,"Sınav Görevi",null,null,null,null,null,null,null,{"$f":"SUM(J43:P43)","v":0},null,null,null,null,null,null,null,null,null,null,null,null,null,null,null,null,null,null,null,null,null,null,null,null,null,null,null,null,null,null,null,0]
[null,null,null,null,null,23021190772,"-",110,"Ekders Yer.Geç.Gör. - Gündüz",null,null,1,3,1,null,null,5,null,1,3,1,null,null,null,null,1,1,1,null,null,null,null,1,3,1,null,null,null,null,null,null,null,null,null,null,null,null,null,13]
[null,null,null,null,null,23021190772,"-",119,"Nöbet Görevi",null,null,null,null,3,null,null,3,null,null,null,3,null,null,null,null,null,null,null,null,null,null,null,null,null,3,null,null,null,null,null,null,null,null,null,null,null,null,null,6]
[12,true,null,"SEVİL YILMAZOĞLU","Öğretmen ",31426049694,"+",101,"Gündüz",null,null,null,null,null,null,null,0,null,null,null,null,null,null,null,null,null,null,null,null,null,null,null,null,null,null,null,null,null,null,null,null,null,null,null,null,null,null,null,0]
[null,null,null,null,null,31426049694,"-",110,"Ekders Yer.Geç.Gör. - Gündüz",null,null,2,null,null,null,null,2,null,2,null,null,null,null,null,null,2,null,null,null,null,null,null,2,null,null,null,null,null,null,null,null,null,null,null,null,null,null,null,6]
[null,null,null,null,null,31426049694,"-",119,"Nöbet Görevi",null,null,3,null,null,null,null,3,null,3,null,null,null,null,null,null,3,null,null,null,null,null,null,3,null,null,null,null,null,null,null,null,null,null,null,null,null,null,null,9]
[13,true,null,"ŞEYMA SAĞIRLI","Öğretmen ",14030073828,"+",101,"Gündüz",null,null,null,7,8,null,null,15,null,null,7,8,null,null,null,null,null,7,8,null,null,null,null,null,7,8,null,null,null,null,null,null,null,null,null,null,null,null,null,45]
[null,null,null,null,null,14030073828,"-",107,"Sınav Görevi",null,null,null,null,null,null,null,{"$f":"SUM(J50:P50)","v":0},null,null,null,null,null,null,null,null,null,null,null,null,null,null,null,null,null,null,null,null,null,null,null,null,null,null,null,null,null,null,null,0]
[null,null,null,null,null,14030073828,"-",110,"Ekders Yer.Geç.Gör. - Gündüz",null,null,2,3,null,null,null,5,null,2,3,null,null,null,null,null,2,3,null,null,null,null,null,2,3,null,null,null,null,null,null,null,null,null,null,null,null,null,null,15]
[null,null,null,null,null,14030073828,"-",116,"Takviye kursu(Gündüz)",1,null,null,1,null,null,null,{"$f":"SUM(J52:P52)","v":2},null,null,1,null,null,null,1,null,null,1,null,null,null,1,null,null,1,null,null,null,null,null,null,null,null,null,null,null,null,null,null,5]
[null,null,null,null,null,14030073828,"-",119,"Nöbet Görevi",null,null,null,null,3,null,null,3,null,null,null,3,null,null,null,null,null,null,3,null,null,null,null,null,null,3,null,null,null,null,null,null,null,null,null,null,null,null,null,9]

{"sheet":"Puantaj","index":20,"n_rows":62,"n_cols":38,"rows_kept":62,"cut":false,"hidden":false,"merged":[[43,37,46,37],[47,37,49,37],[50,37,54,37],[22,37,24,37],[25,37,28,37],[29,37,32,37],[33,37,39,37],[40,37,42,37],[4,37,5,37],[6,37,8,37],[9,37,12,37],[13,37,16,37],[17,37,21,37],[0,5,1,31],[2,36,2,37],[0,32,0,35],[1,32,1,35],[0,36,0,37],[1,36,1,37],[2,5,2,35],[0,2,0,4],[0,0,0,1],[1,0,1,1],[2,0,2,4],[1,2,1,4],[61,27,61,35],[55,31,55,35],[55,0,55,30],[57,27,57,35],[58,27,58,35],[60,27,60,35]]}
["İlçe / İL",null,"Karaburun/İZMİR",null,null,"EK DERS ÜCRETLERİ ÇİZELGESİ\n(KADROLU ÖĞRETMENLER)",null,null,null,null,null,null,null,null,null,null,null,null,null,null,null,null,null,null,null,null,null,null,null,null,null,null,"AY",null,null,null,"Ocak"]
["Kurumu",null,"KARABURUN ANADOLU İMAM HATİP LİSESİ",null,null,null,null,null,null,null,null,null,null,null,null,null,null,null,null,null,null,null,null,null,null,null,null,null,null,null,null,null,"YIL",null,null,null,2019]
["Ö Ğ R E T M E N İ N",null,null,null,null,"GÜNLÜK OKUTULAN DERS SAATLERİ",null,null,null,null,null,null,null,null,null,null,null,null,null,null,null,null,null,null,null,null,null,null,null,null,null,null,null,null,null,null,"Ders Saati"]
["S.N.","T.C. KİMLİK NO","ADI SOYADI","GÖREVİ","ÜCRET TÜRÜ","2019-01-01","2019-01-02","2019-01-03","2019-01-04","2019-01-05","2019-01-06","2019-01-07","2019-01-08","2019-01-09","2019-01-10","2019-01-11","2019-01-12","2019-01-13","2019-01-14","2019-01-15","2019-01-16","2019-01-17","2019-01-18","2019-01-19","2019-01-20","2019-01-21","2019-01-22","2019-01-23","2019-01-24","2019-01-25","2019-01-26","2019-01-27","2019-01-28","2019-01-29","2019-01-30","2019-01-31","Aylık Ok.","Toplam"]
[1,32606090826,"M.MAHSUM GÜLTEKİN","Okul Müdürü","Ders Nit. Yönetim Görevi",6,6,6,6,null,null,6,6,6,6,6,null,null,6,6,6,6,6,null,null,6,6,6,6,6,null,null,6,6,6,6,138,138]
[null,null,null,null,"Takviye kursu(Haftasonu/Gece)",null,null,null,null,null,null,null,null,null,null,null,null,null,null,null,null,null,null,null,null,null,null,null,null,null,null,null,null,null,null,null,0]
[2,13634704480,"MEHMET MİNTAŞ","Müdür Yardımcısı","Ders Nit. Yönetim Görevi",5,5,5,6,null,null,5,5,5,5,6,null,null,5,5,5,5,6,null,null,5,5,5,5,6,null,null,5,5,5,5,119,136]
[null,null,null,null,"Takviye kursu(Haftasonu/Gece)",null,null,null,null,null,2,null,null,null,null,null,null,2,null,null,null,null,null,null,2,null,null,null,null,null,null,2,null,null,null,null,8]
[null,null,null,null,"Nöbet Görevi",null,null,3,null,null,null,null,null,null,3,null,null,null,null,null,null,3,null,null,null,null,null,null,null,null,null,null,null,null,null,null,9]
[3,18575127534,"AYNUR BAŞARAN","Öğretmen ","Gündüz",null,null,2,8,null,null,null,null,null,2,8,null,null,null,null,null,2,8,null,null,null,null,null,null,null,null,null,null,null,null,null,30,57]
[null,null,null,null,"Ekders Yer.Geç.Gör. - Gündüz",null,null,2,2,null,null,null,null,null,2,2,null,null,null,null,null,2,2,null,null,null,null,null,null,null,null,null,null,null,null,null,12]
[null,null,null,null,"Takviye kursu(Gündüz)",null,1,1,null,null,null,null,null,1,1,null,null,null,null,null,1,1,null,null,null,null,null,null,null,null,null,null,null,null,null,null,6]
[null,null,null,null,"Nöbet Görevi",null,null,3,null,null,null,null,null,null,3,null,null,null,null,null,null,3,null,null,null,null,null,null,null,null,null,null,null,null,null,null,9]
[4,36899178056,"CANER ÇELİK","Öğretmen ","Gündüz",null,null,null,7,null,null,null,null,null,null,7,null,null,null,null,null,null,7,null,null,null,null,null,null,null,null,null,null,null,null,null,21,41]
[null,null,null,null,"Ekders Yer.Geç.Gör. - Gündüz",null,1,null,1,null,null,null,null,1,null,1,null,null,null,null,1,null,1,null,null,null,null,null,null,null,null,null,null,null,null,null,6]
[null,null,null,null,"Takviye kursu(Gündüz)",1,null,null,null,null,null,1,1,null,null,null,null,null,1,1,null,null,null,null,null,null,null,null,null,null,null,null,null,null,null,null,5]
[null,null,null,null,"Nöbet Görevi",3,null,null,null,null,null,null,3,null,null,null,null,null,null,3,null,null,null,null,null,null,null,null,null,null,null,null,null,null,null,null,9]
[5,20566694390,"ESİN GÜMÜŞ","Öğretmen ","Gündüz",null,null,null,3,null,null,null,null,null,null,null,null,null,null,null,null,null,3,null,null,null,null,null,null,null,null,null,null,null,null,null,6,38]
[null,null,null,null,"Ekders Yer.Geç.Gör. - Gündüz",null,2,2,null,null,null,null,null,1,2,null,null,null,null,null,2,2,null,null,null,null,null,null,null,null,null,null,null,null,null,null,11]
[null,null,null,null,"Takviye kursu(Gündüz)",1,1,null,null,null,null,null,1,1,null,null,null,null,null,1,1,null,null,null,null,null,null,null,null,null,null,null,null,null,null,null,6]
[null,null,null,null,"Takviye kursu(Haftasonu/Gece)",null,null,null,null,null,2,null,null,null,null,null,null,2,null,null,null,null,null,null,2,null,null,null,null,null,null,null,null,null,null,null,6]
[null,null,null,null,"Nöbet Görevi",3,null,null,null,null,null,null,3,null,null,null,null,null,null,3,null,null,null,null,null,null,null,null,null,null,null,null,null,null,null,null,9]
[6,10862570672,"FADİME AKÇAKAYA POYRAZ","Öğretmen (Y.L.)","Gündüz",null,null,1,5,null,null,null,null,null,1,5,null,null,null,null,null,1,5,null,null,null,null,null,null,null,null,null,null,null,null,null,18,36]
[null,null,null,null,"Ekders Yer.Geç.Gör. - Gündüz",null,null,1,2,null,null,null,null,null,1,2,null,null,null,null,null,1,2,null,null,null,null,null,null,null,null,null,null,null,null,null,9]
[null,null,null,null,"Nöbet Görevi",null,null,null,3,null,null,null,null,null,null,3,null,null,null,null,null,null,3,null,null,null,null,null,null,null,null,null,null,null,null,null,9]
[7,18745429628,"MEDİNE ARI KAPLAN","Öğretmen ","Gündüz",null,null,null,4,null,null,null,null,null,5,4,null,null,null,null,null,5,4,null,null,null,null,null,null,null,null,null,null,null,null,null,22,45]
[null,null,null,null,"Ekders Yer.Geç.Gör. - Gündüz",null,2,null,1,null,null,null,null,2,1,1,null,null,null,null,2,1,1,null,null,null,null,null,null,null,null,null,null,null,null,null,11]
[null,null,null,null,"Takviye kursu(Gündüz)",1,null,null,null,null,null,null,1,null,null,null,null,null,null,1,null,null,null,null,null,null,null,null,null,null,null,null,null,null,null,null,3]
[null,null,null,null,"Nöbet Görevi",null,3,null,null,null,null,null,null,3,null,null,null,null,null,null,3,null,null,null,null,null,null,null,null,null,null,null,null,null,null,null,9]
[8,17744647606,"MEHMET PEKEL","Öğretmen ","Gündüz",null,null,null,5,null,null,null,null,null,null,5,null,null,null,null,null,null,5,null,null,null,null,null,null,null,null,null,null,null,null,null,15,54]
[null,null,null,null,"Ekders Yer.Geç.Gör. - Gündüz",null,3,null,2,null,null,null,null,3,null,2,null,null,null,null,3,null,2,null,null,null,null,null,null,null,null,null,null,null,null,null,15]
[null,null,null,null,"Takviye kursu(Haftasonu/Gece)",null,null,null,null,null,6,null,null,null,null,null,null,6,null,null,null,null,null,null,6,null,null,null,null,null,null,null,null,null,null,null,18]
[null,null,null,null,"Nöbet Görevi",null,null,null,null,null,null,3,null,null,null,null,null,null,3,null,null,null,null,null,null,null,null,null,null,null,null,null,null,null,null,null,6]
[9,16732554520,"MUHAMMET KAŞIKÇI","Öğretmen (Y.L.)","Gündüz",null,5,null,null,null,null,null,null,5,null,null,null,null,null,null,5,null,null,null,null,null,null,null,null,null,null,null,null,null,null,null,15,56]
[null,null,null,null,"%25 Fazla Gündüz",null,null,null,null,null,null,null,null,null,null,null,null,null,null,null,null,null,null,null,null,null,null,null,null,null,null,null,null,null,null,null,0]
[null,null,null,null,"Sınav Görevi",null,null,null,null,null,null,null,null,null,null,null,null,null,null,null,null,null,null,null,null,null,null,null,null,null,null,null,null,null,null,null,0]
[null,null,null,null,"Ekders Yer.Geç.Gör. - Gündüz",2,2,null,null,null,null,null,2,2,null,null,null,null,null,2,2,null,null,null,null,null,null,null,null,null,null,null,null,null,null,null,12]
[null,null,null,null,"Takviye kursu(Gündüz)",1,null,1,null,null,null,1,1,null,1,null,null,null,1,1,null,1,null,null,null,null,null,null,null,null,null,null,null,null,null,null,8]
[null,null,null,null,"Takviye kursu(Haftasonu/Gece)",null,null,null,null,null,4,null,null,null,null,null,null,4,null,null,null,null,null,null,4,null,null,null,null,null,null,null,null,null,null,null,12]
[null,null,null,null,"Nöbet Görevi",3,null,null,null,null,null,null,3,null,null,null,null,null,null,3,null,null,null,null,null,null,null,null,null,null,null,null,null,null,null,null,9]
[10,37655023382,"MUZAFFER YENİLMEZ","Öğretmen ","Gündüz",null,null,null,null,null,null,null,null,null,null,null,null,null,null,null,null,null,null,null,null,null,null,null,null,null,null,null,null,null,null,null,0,6]
[null,null,null,null,"Ekders Yer.Geç.Gör. - Gündüz",null,null,2,null,null,null,null,null,null,2,null,null,null,null,null,null,2,null,null,null,null,null,null,null,null,null,null,null,null,null,null,6]
[null,null,null,null,"Nöbet Görevi",null,null,null,null,null,null,null,null,null,null,null,null,null,null,null,null,null,null,null,null,null,null,null,null,null,null,null,null,null,null,null,0]
[11,23021190772,"RÜMEYSA KARAKOÇ","Öğretmen ","Gündüz",null,null,7,8,null,null,null,null,null,null,null,null,null,null,null,null,7,8,null,null,null,null,null,null,null,null,null,null,null,null,null,30,49]
[null,null,null,null,"Sınav Görevi",null,null,null,null,null,null,null,null,null,null,null,null,null,null,null,null,null,null,null,null,null,null,null,null,null,null,null,null,null,null,null,0]
[null,null,null,null,"Ekders Yer.Geç.Gör. - Gündüz",null,1,3,1,null,null,null,null,1,1,1,null,null,null,null,1,3,1,null,null,null,null,null,null,null,null,null,null,null,null,null,13]
[null,null,null,null,"Nöbet Görevi",null,null,null,3,null,null,null,null,null,null,null,null,null,null,null,null,null,3,null,null,null,null,null,null,null,null,null,null,null,null,null,6]
[12,31426049694,"SEVİL YILMAZOĞLU","Öğretmen ","Gündüz",null,null,null,null,null,null,null,null,null,null,null,null,null,null,null,null,null,null,null,null,null,null,null,null,null,null,null,null,null,null,null,0,15]
[null,null,null,null,"Ekders Yer.Geç.Gör. - Gündüz",null,2,null,null,null,null,null,null,2,null,null,null,null,null,null,2,null,null,null,null,null,null,null,null,null,null,null,null,null,null,null,6]
[null,null,null,null,"Nöbet Görevi",null,3,null,null,null,null,null,null,3,null,null,null,null,null,null,3,null,null,null,null,null,null,null,null,null,null,null,null,null,null,null,9]
[13,14030073828,"ŞEYMA SAĞIRLI","Öğretmen ","Gündüz",null,null,7,8,null,null,null,null,null,7,8,null,null,null,null,null,7,8,null,null,null,null,null,null,null,null,null,null,null,null,null,45,74]
[null,null,null,null,"Sınav Görevi",null,null,null,null,null,null,null,null,null,null,null,null,null,null,null,null,null,null,null,null,null,null,null,null,null,null,null,null,null,null,null,0]
[null,null,null,null,"Ekders Yer.Geç.Gör. - Gündüz",null,2,3,null,null,null,null,null,2,3,null,null,null,null,null,2,3,null,null,null,null,null,null,null,null,null,null,null,null,null,null,15]
[null,null,null,null,"Takviye kursu(Gündüz)",null,null,1,null,null,null,1,null,null,1,null,null,null,1,null,null,1,null,null,null,null,null,null,null,null,null,null,null,null,null,null,5]
[null,null,null,null,"Nöbet Görevi",null,null,null,3,null,null,null,null,null,null,3,null,null,null,null,null,null,3,null,null,null,null,null,null,null,null,null,null,null,null,null,9]
[{"$f":"\"Yukarıda belirtilen görevlilerce \"&AK2&\" yılının \"&AK1&\" ayında toplam \"&AL56&\"(\"&YAZ(AL56)&\") saat ekders okutulmuştur.\"","v":"Yukarıda belirtilen görevlilerce 2019 yılının Ocak ayında toplam 745(YediyüzKırkBeş) saat ekders okutulmuştur."},null,null,null,null,null,null,null,null,null,null,null,null,null,null,null,null,null,null,null,null,null,null,null,null,null,null,null,null,null,null,"TOPLAM",null,null,null,null,{"$f":"SUM(AK5:AK55)","v":745},745]
[]
[null,null,"DÜZENLEYEN",null,null,null,null,null,null,null,null,null,null,null,null,null,null,null,null,null,null,null,null,null,null,null,null,"UYGUNDUR"]
[null,null,"2019-02-21",null,null,null,null,null,null,null,null,null,null,null,null,null,null,null,null,null,null,null,null,null,null,null,null,"2019-02-21"]
[]
[null,null,"Mehmet MİNTAŞ",null,null,null,null,null,null,null,null,null,null,null,null,null,null,null,null,null,null,null,null,null,null,null,null,"M.Mahsum GÜLTEKİN"]
[null,null,"Müdür Yardımcısı",null,null,null,null,null,null,null,null,null,null,null,null,null,null,null,null,null,null,null,null,null,null,null,null,"Okul Müdürü"]

{"sheet":"Kodlar","index":21,"n_rows":71,"n_cols":3,"rows_kept":71,"cut":false,"hidden":false,"merged":[]}
["S.N.","Veri Tip Kodu","Veri Tipi"]
[1,101,"Gündüz"]
[2,102,"Gece"]
[3,103,"%25 Fazla Gündüz"]
[4,104,"%25 Fazla Gece"]
[5,106,"Belleticilik"]
[6,107,"Sınav Görevi"]
[7,108,"Egzersiz"]
[8,109,"Hizmetiçi"]
[9,110,"Ekders Yer.Geç.Gör. - Gündüz"]
[10,111,"Ekders Yer.Geç.Gör. - Gece"]
[11,112,"Ekders Yer.Geç.Gör. - %25 Gündüz"]
[12,113,"Ekders Yer.Geç.Gör. - %25 Gece"]
[13,114,"Atış Eğitimi"]
[14,115,"Cezaevleri Eğitim Merkezi - 160*Saat"]
[15,116,"Takviye kursu(Gündüz)"]
[16,117,"Takviye kursu(Haftasonu/Gece)"]
[17,118,"Belleticilik %25 Fazla"]
[18,119,"Nöbet Görevi"]
[]
[]
[]
[]
[]
[]
[]
[]
[]
[]
[]
[]
[]
[]
[]
[]
[]
[]
[]
[]
[]
[]
[]
[]
[]
[]
[]
[]
[]
[]
[]
[]
[]
[]
[]
[]
[]
[]
[]
[]
[]
[]
[]
[]
[]
[]
[]
[]
[]
[]
[]
[null,null,"www.egitimhane.com"]

{"sheet":"Ayar","index":22,"n_rows":12,"n_cols":3,"rows_kept":12,"cut":false,"hidden":true,"merged":[]}
["2019-01-01"]
["2019-01-31"]
["Mehmet MİNTAŞ"]
["Müdür Yardımcısı"]
["M.Mahsum GÜLTEKİN"]
["Okul Müdürü"]
["KARABURUN ANADOLU İMAM HATİP LİSESİ"]
["Karaburun/İZMİR"]
[0]
[0]
[1,100,"Brüt Ders Saatleri (Reh./Kulüp Hariç)"]
[false]

{"sheet":"Arsiv","index":23,"n_rows":18,"n_cols":18,"rows_kept":18,"cut":false,"hidden":false,"merged":[]}
["Tarih","S.N.","Aktif","Saymanlık  Numarası","Adı ve Soyadı","Görevi","TCKN","ArtıEksi","Veri Tip","Veri Açıklama","Pt","Sa","Çr","Pr","Cm","Ct","Pz","TOPLAM"]
[null,1,null,null,"AYNUR","Öğretmen",18575127534]
[null,2,null,null,"CANER","Öğretmen",36899178056]
[null,3,null,null,"ESİN","Öğretmen",20566694390]
[null,4,null,null,"FADİME","Öğretmen",10862570672]
[null,5,null,null,"MEDİNE","Öğretmen",18745429628]
[null,6,null,null,"MEHMET","Müdür Yardımcısı",13634704480]
[null,7,null,null,"MEHMET","Öğretmen",17744647606]
[null,8,null,null,"MEHMET MAHSUM","Müdür",32606090826]
[null,9,null,null,"MUHAMMET","Öğretmen",16732554520]
[null,10,null,null,"MUZAFFER","Öğretmen",37655023382]
[null,11,null,null,"MÜGE","Öğretmen",15385591456]
[null,12,null,null,"RÜMEYSA","Öğretmen",23021190772]
[null,13,null,null,"SEVİL","Öğretmen",31426049694]
[null,14,null,null,"ŞEYMA","Öğretmen",14030073828]
[null,15]
[null,16]
[null,17]